{"text_format":"1","workbook":"xlsx","n_sheets":8,"sheets":["Application","Calculations","Sample Calculations","Lighting Layouts","QPL_Spec Sheets","Proposal_Optional","Savings and Incentives","Revision History"],"not_rendered":{"charts":0,"images":14,"macros":1,"external_links":2,"defined_names":40,"comments":2,"pivot_tables":0},"unopened":[],"bounds":{"document_bytes":16777216,"sheet_cells":100000,"rows_first":2000,"rows_last":500,"rows_between":2000,"halvings":0,"cell_chars":16384,"cell_head_chars":4096},"cells_cut":0,"cells_raw":0,"read":"whole","date_system":"1900"}

{"sheet":"Application","index":0,"n_rows":64,"n_cols":14,"rows_kept":64,"cut":false,"hidden":false,"merged":[[63,9,64,13],[50,1,50,4],[50,9,50,13],[51,9,51,10],[52,1,52,4],[52,5,52,6],[53,9,53,10],[53,11,53,13],[55,9,56,13],[57,12,57,13],[58,1,58,6],[58,9,59,13],[60,1,60,4],[15,5,15,7],[49,9,49,13],[32,10,32,12],[33,1,33,6],[37,1,37,4],[37,9,37,13],[39,9,39,13],[41,9,41,11],[43,9,43,13],[44,5,44,6],[45,9,45,10],[46,9,48,13],[48,1,48,6],[11,1,11,4],[12,1,14,7],[31,1,31,4],[15,12,15,13],[19,9,19,13],[21,9,21,10],[21,11,21,13],[23,2,23,6],[23,9,23,13],[25,1,25,6],[25,9,25,13],[27,1,27,6],[27,9,27,11],[29,1,29,6],[15,1,15,4],[16,5,16,7],[0,0,3,13],[5,0,8,7],[7,9,7,13],[9,9,9,10],[9,11,9,13]]}
["HORTICULTURAL LIGHTING SOLUTION APPLICATION                                                                                                        FOR PROJECTS COMPLETED BY 12/31/2022"]
[]
[]
[]
[]
["COMPLETE ALL SECTIONS. INCOMPLETE APPLICATIONS CANNOT BE PROCESSED AND WILL DELAY PAYMENT OF INCENTIVES. APPLICATIONS MUST BE SUBMITTED WITHIN 60 DAYS OF COMPLETED PROJECT INSTALLATION, NO LATER THAN JANUARY 31, 2023. FOR ADDITIONAL COPIES OF THIS FORM, VISIT FOCUSONENERGY.COM/CATALOGS."]
[null,null,null,null,null,null,null,null,null,"CUSTOMER CONTACT INFORMATION"]
[]
[null,null,null,null,null,null,null,null,null,"JOB SITE CUSTOMER CONTACT NAME"]
[]
[null,"ACCOUNT AND CUSTOMER INFORMATION",null,null,null,null,null,null,null,"PRIMARY PHONE #",null,"E-MAIL ADDRESS"]
[null,"TAX IDENTIFICATION NUMBER (Check one.)",null,null,null,"        FEIN          OR","            SSN",null,null,"         I opt in to receive program updates via text message."]
[null,"IF YOU USE A SOCIAL SECURITY NUMBER (SSN) AS YOUR TAX IDENTIFICATION NUMBER, DO NOT PROVIDE IT BELOW. YOU WILL BE CONTACTED BY THE PROGRAM VIA E-MAIL TO PROVIDE A COPY OF YOUR W-9 USING A SECURE ONLINE PORTAL, IF IT IS NOT ALREADY ON FILE. YOU MUST LIST",null,null,null,null,null,null,null,"Preferred method of contact:"]
[null,null,null,null,null,null,null,null,null,"         Call"," E-mail","Text"]
[null,null,null,null,null,null,null,null,null,"If Focus on Energy has a question about this application, we should contact:"]
[null,"AN E-MAIL ADDRESS IN SECTION 3.",null,null,null,null,null,null,null,"       Customer","Trady Ally","      Other"]
[null,null,null,null,null,"FEIN"]
[null,"BUSINESS CLASSIFICATION OF CUSTOMER"]
[null,"(Check one. Required for all businesses, including non-profits.)",null,null,null,null,null,null,null,"TRADE ALLY INFORMATION"]
[null,"Sole Proprietorship",null,"Individual",null,"Single Member - LLC"]
[null,"C Corporation",null,"S Corporation",null,"Partnership",null,null,null,"TRADE ALLY CONTACT NAME"]
[null,"Limited Liability Company - C Corp",null,null,null,"Limited Liability Company - S Corp"]
[null,"Limited Liability Company - Partnership",null,null,null,null,null,null,null,"PRIMARY PHONE #",null,"E-MAIL ADDRESS"]
[null,"Other:"]
[null,null,null,null,null,null,null,null,null,"TRADE ALLY COMPANY NAME"]
[]
[null,"OWNER NAME (REQUIRED IF SSN IS USED AS TAX IDENTIFICATION NUMBER)",null,null,null,null,null,null,null,"ADDRESS"]
[]
[null,"COMPANY NAME",null,null,null,null,null,null,null,"CITY",null,null,"STATE","ZIP"]
[]
[null,"LEGAL ADDRESS (AS SHOWN ON COMPANY W-9)",null,null,null,null,null,null,null,"BUSINESS PAYMENT INFORMATION"]
[null,null,null,null,null,null,null,null,null,"Make incentive check payable to:"]
[null,"CITY",null,null,null,"STATE","ZIP",null,null,"        Customer","Trade Ally (complete item A)"]
[null,null,null,null,null,null,null,null,null,"        Other Payee (complete item B)"]
[null,"WHO DID YOU WORK WITH FROM FOCUS ON ENERGY ON THIS PROJECT? (CONTACT NAME)",null,null,null,null,null,null,null,"Mail check to:"]
[null,null,null,null,null,null,null,null,null,"       Customer Address","  Job Site Address",null,"          Trade Ally Address"]
[null,"How did you hear about us? (Check one.)",null,null,null,null,null,null,null,"       Other Payee or Alternate Address (complete below)"]
[null,"                Community Association/Agency",null,null,null,"Distributor/Supplier"]
[null,"Focus Direct Mail/Postcard",null,null,null,"Focus Email","Focus Event",null,null,"COMPANY NAME"]
[null,"Focus Staff/Energy Advisor",null,null,null,"Focus Website","Internet Search"]
[null,"Manufacturer",null,null,"Nat'l Rebate Administrator",null,"            Newspaper",null,null,"ADDRESS"]
[null,"Past Participation",null,null,"Radio","Social Media","            Trade Ally/Contractor"]
[null,"Trade Show/Fair",null,null,"TV","Utility Bill Insert/Direct Mail",null,null,null,"CITY",null,null,"STATE","ZIP"]
[null,"        Utility Contact",null,null,"Utility Email","           Utility Website"]
[null,"                Word of Mouth - Referral",null,null,"            Other:",null,null,null,null,"ATTENTION TO (OPTIONAL)"]
[null,null,null,null,null,null,null,null,null,"A. For Trade Ally Payee "]
[null,"JOB SITE INFORMATION",null,null,null,null,null,null,null,"To receive payment, a Trade Ally must be registered with a current W-9 on file. Provide the Trade Ally's Tax Identification Number. If you use a Social Security number as the company tax ID, do not provide it here. "]
[null,"(Please refer to your utility bills for account numbers below.)"]
[]
[null,"JOB SITE BUSINESS NAME"]
[null,null,null,null,null,null,null,null,null,"FEIN"]
[null,"ELECTRIC UTILITY AT JOB SITE",null,null,null,"ELECTRIC ACCOUNT #",null,null,null,"B. For Other Payee "]
[null,"N/A",null,null,null,"N/A",null,null,null,"1. Individual Contact Information:"]
[null,"GAS UTILITY AT JOB SITE",null,null,null,"GAS ACCOUNT #"]
[null,null,null,null,null,null,null,null,null,"NAME",null,"EMAIL ADDRESS"]
[null,"Job Site Address is same as Legal Address",null,null,null,null,null,null,null,"2. Specify relationship to utility account holder (this is required if check is payable to someone other than the Customer or Trade Ally):"]
[null,"Job Site Address is different (complete below.)"]
[null,null,null,null,null,null,null,null,null," Tenant                 Building Owner",null," Other (specify)"]
[null,null,null,null,null,null,null,null,null,"3. Select your business classification (Check one. Required for all businesses, including non-profits.)"]
[null,"JOB SITE ADDRESS"]
[null,null,null,null,null,null,null,null,null,"Sole Proprietorship","    Individual","          Single-Member LLC",null,"C Corporation"]
[null,"CITY",null,null,null,"STATE","ZIP",null,null,"        S Corporation","Partnership","LLC - C Corp","    LLC - S Corp"]
[null,null,null,null,null,null,null,null,null," LLC - Partnership","   Other"]
[null,null,null,null,null,null,null,null,null,"4. A representative of Focus on Energy will reach out to you via email with a method to securely provide a copy of your W-9. This is required to receive payment. Provide the email address (if different than the one provided above): "]

{"sheet":"Calculations","index":1,"n_rows":8,"n_cols":2,"rows_kept":8,"cut":false,"hidden":false,"merged":[]}
["Insert/Embed both Baseline and Energy Efficient LED Energy Usage Calculations"]
[]
[null,"Notes and requirements for calculations:"]
[null,"• All savings calculations are treated as confidential and will not be shared outside of Focus on Energy"]
[null,"• Formulas used in savings calculations need to be viewable to Focus on Energy review team"]
[null,"• Calculations must show or describe how the hours of use are derived for both baseline and energy efficient designs"]
[null,"• Baseline design must be practical and a viable option to the customer that uses the same Photosynthetic Photon Flux Density (PPFD) as the energy efficient LED design"]
[null,"• Calculations will need to output the Annual Electrical Usage (kWh), Electrical Demand (kW), and Cost for both the baseline and the energy efficient design. These are input on the \"Savings and Incentives\" tab."]

{"sheet":"Sample Calculations","index":2,"n_rows":48,"n_cols":11,"rows_kept":48,"cut":false,"hidden":false,"merged":[]}
[]
["SAMPLE CALCULATION - Supplemented Greenhouse:",null,null,null,"SAMPLE CALCULATION - Non-Stacked Indoor Farm:"]
[null,"Baseline Example",null,null,null,"Baseline Example"]
["Description","Double Ended 1000W High Pressure Sodium",null,null,"Description","Double Ended 1000W High Pressure Sodium"]
["# of Fixtures",242,null,null,"# of Fixtures",242]
["Fixture Wattage",1079,null,null,"Fixture Wattage",1079]
["Annual Operating Hours",3641,null,null,"Annual Operating Hours",3641]
["kW Demand",{"$f":"ROUND(B5*B6/1000,4)","v":261.11799999999999},null,null,"kW Demand",{"$f":"ROUND(F5*F6/1000,4)","v":261.11799999999999}]
["Annual kWh Usage",{"$f":"ROUND(B8*B7,0)","v":950731},null,null,"Annual kWh Usage",{"$f":"ROUND(F8*F7,0)","v":950731}]
["Customer blended $/kWh Rate",0.11,null,null,"Customer blended $/kWh Rate",0.11]
["Project Cost",154250,null,null,"Project Cost",154250]
[]
[null,"Proposed Energy Efficient LED Example",null,null,null,"Proposed Energy Efficient LED Example"]
["Description","List Make and Model of the LED fixtures",null,null,"Description","List Make and Model of the LED fixtures"]
["# of Fixtures",220,null,null,"# of Fixtures",220]
["Fixture Wattage",654,null,null,"Fixture Wattage",654]
["Proposed Annual Electrical Usage Without Controls (kWh)",{"$f":"((B15*B16)/1000)*B7","v":523867.07999999996},null,null,"Proposed Annual Electrical Usage Without Controls (kWh)",{"$f":"((F15*F16)/1000)*F7","v":523867.07999999996}]
["Use of Controls?","Yes",null,null,"Use of Controls?","Yes"]
["Control Type","Dimming",null,null,"Control Type","Dimming"]
["Lighting Control Savings Factor",0.15,null,null,"Lighting Control Savings Factor",0.15]
["Annual Operating Hours",{"$f":"IFERROR(IF(B18=\"no\",B7,B7*(1-B20)),\"\")","v":3094.85},null,null,"Annual Operating Hours",{"$f":"IFERROR(IF(F18=\"no\",F7,F7*(1-F20)),\"\")","v":3094.85}]
[]
["Proposed Electrical Demand (kW)",{"$f":"ROUND(B15*B16/1000,2)","v":143.88},null,null,"Proposed Electrical Demand (kW)",{"$f":"ROUND(F15*F16/1000,2)","v":143.88}]
["Proposed Annual Electrical Usage Without Controls",{"$f":"B15*(B16/1000)*B7","v":523867.07999999996},null,null,"Proposed Annual Electrical Usage Without Controls",{"$f":"F15*(F16/1000)*F7","v":523867.07999999996}]
["Proposed Annual Electrical Usage With Controls",{"$f":"B15*(B16/1000)*B21","v":445287.01799999998},null,null,"Proposed Annual Electrical Usage With Controls",{"$f":"F15*(F16/1000)*F21","v":445287.01799999998}]
["Project Cost",324150,null,null,"Project Cost",324150]
[]
["ESTIMATED SAVINGS","Example",null,null,"ESTIMATED SAVINGS","Example"]
[" kW Saved","NA for Greenhouses",null,null," kW Saved",{"$f":"F8-F23","v":117.238}]
["Proposed Annual Electrical Savings With Controls",{"$f":"B9-B25","v":505443.98200000002},null,null,"Proposed Annual Electrical Savings With Controls",{"$f":"F9-F25","v":505443.98200000002}]
[]
["These are examples only, the number of lighting hours will need to be calculated for each project individually."]
["Estimated Greenhouse Supplemental Lighting Hours - SAMPLE CALC",null,null,null,null,null,null,"Estimated Non-Stacked Indoor Farm Lighting Hours - SAMPLE CALC"]
["Month","Avg.Daily Direct Solar Radiation","% cloud cover","Supplemental Light Est. Hours","Days","Total Hrs. Grow Lights On",null,"Month","Est. Lighting Hours","Days","Total Hrs. Grow Lights On"]
["January",12.3,0.46,18,31,{"$f":"D35*E35","v":558},null,"January",0,0,{"$f":"I35*J35","v":0}]
["February",15,0.56000000000000005,16,28,448,null,"February",0,0,0]
["March",16.100000000000001,0.67,12,31,372,null,"March",16,25,400]
["April",17,0.71,10,30,300,null,"April",16,30,480]
["May",18.5,0.73,7.5,31,232.5,null,"May",16,31,496]
["June",20.7,0.74,5,30,150,null,"June",16,30,480]
["July",21.7,0.72,3,31,93,null,"July",16,31,496]
["August",19.3,0.62,0,31,0,null,"August",16,31,496]
["September",17.5,0.53,0,30,0,null,"September",16,30,480]
["October",14.2,0.52,14,31,434,null,"October",13.05,24,313.20000000000005]
["November",10.8,0.44,16.5,30,495,null,"November",0,0,0]
["December",11,0.43,18,31,558,null,"December",0,0,0]
[null,16.2,null,null,null,{"$f":"SUM(F35:F46)","v":3640.5},null,null,null,null,{"$f":"SUM(K35:K46)","v":3641.2}]
[null,null,null,null,"Default value for Supplemented Greenhouse is 2,120 hours",null,null,null,"Default value for Indoor is 5,475 hours"]

{"sheet":"Lighting Layouts","index":3,"n_rows":26,"n_cols":18,"rows_kept":26,"cut":false,"hidden":false,"merged":[[3,1,8,2],[3,4,8,5],[9,4,10,5],[9,1,10,2]]}
["Insert/Embed both Baseline and Energy Efficient LED Layout Designs"]
[null,null,null,null,null,null,null,null,"How to Embed a PDF File in an Excel Worksheet"]
[null,null,null,null,null,null,null,null,"1. Go to Insert tab and click on the Object icon in the Text group. ..."]
[null,null,null,null,null,null,null,null,"2. In the Object dialog box, select the 'Create New' tab and the select 'Adobe Acrobat Document' from the list. ..."]
[null,null,null,null,null,null,null,null,"3. Check the option – 'Display as icon'."]
[null,null,null,null,null,null,null,null,"4. If desired, select \"Change Icon\" to modify the file name displayed (ex: Baseline Design, EE Design, etc.).  "]
[null,null,null,null,null,null,null,null,"5. Click OK."]
[null,null,null,null,null,null,null,null,"6. Select the PDF file to embed and click on Open."]
[]
[null,"Baseline Design     Layout",null,null,"Energy Efficient Design Layout",null,null,null,"1)",null,null,null,null,null,null,null,null,"2 - 5)"]
[]
[]
[]
[]
[]
[]
[]
[]
[]
[]
[]
[]
[]
[]
[]
[null,null,null,null,null,null,null,null,null,null,null,null,null,null,null,null,null,"6)"]

{"sheet":"QPL_Spec Sheets","index":4,"n_rows":26,"n_cols":26,"rows_kept":26,"cut":false,"hidden":false,"merged":[]}
["Insert/Embed Energy Efficient LED DLC QPL or Spec Sheets"]
[null,null,null,null,null,null,null,null,null,null,null,null,null,null,null,null,"How to Embed a PDF File in an Excel Worksheet"]
[null,"New fixtures must be DLC listed in the Horticultural Lighting category or meet the following requirements:",null,null,null,null,null,null,null,null,null,null,null,null,null,null,"1. Go to Insert tab and click on the Object icon in the Text group. ..."]
[null,"• Photosynthetic Photon Efficacy (PPE) ≥ 2,2 µmol/J.",null,null,null,null,null,null,null,null,null,null,null,null,null,null,"2. In the Object dialog box, select the 'Create New' tab and the select 'Adobe Acrobat Document' from the list. ..."]
[null,"• Minimum warranty of five years.",null,null,null,null,null,null,null,null,null,null,null,null,null,null,"3. Check the option – 'Display as icon'."]
[null,"• Appropriate horticultural lighting designation by OSHA Nationally Recognized Testing Laboratories or Safety Compliance and Consulting Corporation.",null,null,null,null,null,null,null,null,null,null,null,null,null,null,"4. If desired, select \"Change Icon\" to modify the file name displayed (ex: Model XYZ QPL, Model ABC QPL, etc.).  "]
[null,null,null,null,null,null,null,null,null,null,null,null,null,null,null,null,"5. Click OK."]
[null,null,null,null,null,null,null,null,null,null,null,null,null,null,null,null,"6. Select the PDF file to embed and click on Open."]
[]
[null,null,null,null,null,null,null,null,null,null,null,null,null,null,null,null,"1)",null,null,null,null,null,null,null,null,"2 - 5)"]
[]
[]
[]
[]
[]
[]
[]
[]
[]
[]
[]
[]
[]
[]
[]
[null,null,null,null,null,null,null,null,null,null,null,null,null,null,null,null,null,null,null,null,null,null,null,null,null,"6)"]

{"sheet":"Proposal_Optional","index":5,"n_rows":26,"n_cols":16,"rows_kept":26,"cut":false,"hidden":false,"merged":[]}
["Insert/Embed Proposal **Optional**"]
[null,null,null,null,null,null,"How to Embed a PDF File in an Excel Worksheet"]
[null,null,null,null,null,null,"1. Go to Insert tab and click on the Object icon in the Text group. ..."]
[null,null,null,null,null,null,"2. In the Object dialog box, select the 'Create New' tab and the select 'Adobe Acrobat Document' from the list. ..."]
[null,null,null,null,null,null,"3. Check the option – 'Display as icon'."]
[null,null,null,null,null,null,"4. If desired, select \"Change Icon\" to modify the file name displayed (ex: Proposal [Month] [Year], etc.).  "]
[null,null,null,null,null,null,"5. Click OK."]
[null,null,null,null,null,null,"6. Select the PDF file to embed and click on Open."]
[]
[null,null,null,null,null,null,"1)",null,null,null,null,null,null,null,null,"2 - 5)"]
[]
[]
[]
[]
[]
[]
[]
[]
[]
[]
[]
[]
[]
[]
[]
[null,null,null,null,null,null,null,null,null,null,null,null,null,null,null,"6)"]

{"sheet":"Savings and Incentives","index":6,"n_rows":44,"n_cols":11,"rows_kept":44,"cut":false,"hidden":false,"merged":[[8,6,9,6],[3,2,3,3],[5,2,5,3],[6,2,6,3],[4,2,4,3],[9,2,9,3],[8,2,8,3]]}
[null,null,null,null,null,"Last Updated:",{"$f":"MAX('Revision History'!A4:A32)","v":"2022-01-06"},null,null,null,"Measure"]
[null,"Additional Information:",null,null,null,null,null,null,null,null,"Grow Light System, Non-stacked indoor farm"]
[null,null,null,null,null,null,null,null,null,null,"Grow Light System, Supplemented greenhouse"]
[]
[null,null,"SOLUTION (Choose from dropdown)"]
[]
[null,null,"BUILDING TYPE (Choose from dropdown)",null,null,null,null,null,null,null,"Existing Building"]
[null,null,null,null,null,null,null,null,null,null,"New Construction"]
[]
[null,null,"ESTIMATED COMPLETION DATE"]
[]
[null,"Energy Savings  (paste or link values from Calculations tab)"]
[null,null,null,null,"EXAMPLE","Fill in the blue cells only"]
[null,null,null,"Baseline Annual Electrical Usage (kWh)",950731]
[null,null,null,"Proposed Annual Electrical Usage Without Automated Controls (kWh)",524011,null,"Not a required field"]
[null,null,null,"Proposed Annual Usage With Automated Controls (kWh)",445410,null,"If controls are not installed, re-enter proposed usage without controls from cell E15"]
[null,null,null,"Annual Energy Savings (kWh)",{"$f":"ROUND(E14-E16,0)","v":505321},{"$f":"ROUND(F14-F16,0)","v":0}]
["Grow Light System, Supplemented greenhouse",null,null,"Lifecycle Energy Savings (kWh)",{"$f":"IF(B4=\"Grow Light System, Non-stacked indoor farm\",E17*10,E17*20)","v":10106420},{"$f":"IF(C4=\"Grow Light System, Non-stacked indoor farm\",F17*10,F17*20)","v":0}]
[]
[0.3,null,null,"Energy Reduction (%)",{"$f":"IFERROR(1-(E16/E14),\"\")","v":0.5315078607934316},{"$f":"IFERROR(1-(F16/F14),\"\")","v":""},{"$f":"IF(F20=\"\",\"\",IF(F20<29.99%,\"Does not meet % Energy Reduction Requirement - May qualify for Custom Incentive\",\"Does meet % Energy Reduction Requirement\"))","v":""}]
[null,null,null,"Equivalent Photosynthetic Photon Flux Density (PPFD)","verified",null,null,"Verified"]
[null,null,null,null,null,null,null,"Not Verified"]
[29.99,null,null,"Baseline Electrical Demand (kW)",261.12]
["Grow Light System, Supplemented greenhouse",null,null,"Proposed Electrical Demand (kW)",143.91999999999999]
[null,null,null,"Demand Savings (kW)",{"$f":"ROUND(E23-E24,2)","v":117.2},{"$f":"ROUND(F23-F24,2)","v":0}]
[]
[]
[null,"Estimated Incentive Amount",null,null,null,null,"Note: Blended electrical cost"]
[]
[null,null,null,"Cost of Electricity ($/kWh)",0.1105,null,"Manually overwrite if needed. Default value of $0.1105 is EIA 2020 Commercial Annual Rate"]
[null,null,null,"Project Cost for Baseline Design",154250]
[null,null,null,"Project Cost for Energy Efficient Design",324150]
[null,null,null,"Incremental Project Cost",{"$f":"IFERROR(E32-E31,\"\")","v":169900},{"$f":"IFERROR(F32-F31,\"\")","v":0},{"$f":"(IF(F33<0,\"Does Not Qualify - Negative Incremental Project Cost\",\"\"))","v":""}]
[null,null,null,"Incentive Rate ($/kWh Saved)",0.06,0.06]
[]
[null,null,null,"Annual Energy Cost Savings",{"$f":"E17*E30","v":55837.970500000003},{"$f":"F17*F30","v":0}]
[]
[null,null,null,"Total Incentive",{"$f":"E34*E17","v":30319.26},{"$f":"F34*F17","v":0}]
[]
[null,null,null,"Incentive Limits"]
[null,null,null,"Incentive Capped at 50% Cost",{"$f":"(ROUND(E33*0.5,2))","v":84950},{"$f":"(ROUND(F33*0.5,2))","v":0}]
[null,null,null,"Incentive Capped at $300,000",{"$f":"MIN(E38,300000)","v":30319.26},{"$f":"MIN(F38,300000)","v":0}]
[null,null,null,"Incentive Based on Energy Savings",{"$f":"E38","v":30319.26},{"$f":"F38","v":0}]
[null,null,null,"Final Incentive",{"$f":"MIN(E41:E43)","v":30319.26},{"$f":"MIN(F41:F43)","v":0}]

{"sheet":"Revision History","index":7,"n_rows":9,"n_cols":3,"rows_kept":9,"cut":false,"hidden":true,"merged":[]}
["Revision History"]
[]
["Date","Describe the revision that was made","Name"]
["2020-07-16","Added revision history tab","TB"]
["2021-01-04","Updated Application tab, removed Hort Lighting Sell Sheet since measures are in 2021 Ag Catalog, updated password to 'focus2021'","Melissa "]
["2021-01-22","Corrected incentive cap error in formula on Savings & Incentives tab","Melissa "]
["2021-02-05","Added 'Equivalent PPFD) check on Savings & Incentives Tab","Melissa "]
["2022-01-04","Updated Application tab to have text align with check boxes and dates and section 1. Updated logo as well.","Jeremiah"]
["2022-01-06","Added how to embed instructions on several tabs. Reformatted requirement text to bullets, renamed Invoice tab to Proposal","Melissa "]